bitfinex/quotes_SOLUSD_20251118
["timestamp","ask_amount","ask_price","bid_price","bid_amount"]
[1763434266787,9.08505086,133.75,133.72,9.78882769]
[1763434266932,9.08505086,133.75,133.74,9.78882769]
[1763434267273,9.08505086,133.75,133.73,9.78882769]
[1763434267431,9.08505086,133.75,133.73,0.67]
[1763434267631,9.08505086,133.75,133.74,10.45882769]
[1763434269252,9.08505086,133.76,133.75,9.78882769]
[1763434269550,9.08505086,133.76,133.74,0.67]
[1763434269862,18.12096,133.72,133.71,0.2]
[1763434270168,9.08505086,133.72,133.71,0.2]
[1763434270548,0.69,133.78,133.71,0.87]
[1763434270747,9.08505086,133.73,133.71,0.87]
[1763434270947,9.08505086,133.75,133.72,0.67]
[1763434271363,9.08505086,133.74,133.72,0.67]
[1763434271559,9.08505086,133.73,133.71,9.98882769]
[1763434271770,9.08505086,133.73,133.71,10.70882769]
[1763434272580,9.08505086,133.73,133.72,0.72]
[1763434272755,112.45505086,133.8,133.72,0.72]
[1763434273080,9.08505086,133.75,133.73,9.78882769]
[1763434273278,9.08505086,133.74,133.73,0.72]
[1763434273492,9.08505086,133.74,133.73,10.50882769]
[1763434273653,9.08505086,133.75,133.73,10.50882769]
[1763434274054,9.08505086,133.74,133.73,10.50882769]
[1763434274254,27.20601086,133.74,133.73,9.78882769]
[1763434274483,27.20601086,133.74,133.73,10.50882769]
[1763434276851,27.20601086,133.74,133.71,0.2]
[1763434276852,18.12096,133.72,133.71,0.2]
[1763434277160,27.20601086,133.72,133.71,0.2]
[1763434277669,27.87601086,133.72,133.71,0.2]
[1763434279291,27.87601086,133.72,133.64,9.98882769]
[1763434279292,9.08505086,133.67,133.64,9.98882769]
[1763434279673,9.08505086,133.67,133.64,0.2]
[1763434281576,9.74505086,133.67,133.64,0.2]
[1763434282591,9.08505086,133.67,133.65,0.72]
[1763434283500,9.08505086,133.67,133.64,0.92]
[1763434284491,0.66,133.71,133.67,9.78882769]
[1763434284883,0.66,133.71,133.66,0.1]
[1763434285601,5.88674463,133.67,133.66,0.1]
[1763434285778,5.88674463,133.68,133.66,0.82]
[1763434286391,5.88674463,133.67,133.66,0.1]
[1763434286593,6.54674463,133.67,133.66,0.1]
[1763434286898,0.66,133.67,133.66,0.1]
[1763434287106,6.54674463,133.67,133.66,0.1]
[1763434287271,9.78882769,133.73,133.66,0.1]
[1763434287477,5.88674463,133.67,133.66,0.1]
[1763434287879,6.54674463,133.67,133.66,0.1]
[1763434288806,6.54674463,133.67,133.64,0.2]
[1763434289101,18.12096,133.62,133.57,0.92]
[1763434289281,11.77348926,133.65,133.57,0.92]
[1763434289282,24.00770463,133.58,133.57,0.2]
[1763434289477,24.00770463,133.58,133.57,0.92]
[1763434289687,18.12096,133.58,133.57,0.92]
[1763434290089,24.00770463,133.58,133.57,0.2]
[1763434290290,18.12096,133.58,133.57,0.92]
[1763434291776,18.12096,133.58,133.57,10.70882769]
[1763434292176,48.3632537,133.71,133.58,9.78882769]
[1763434292177,5.88674463,133.63,133.58,9.78882769]
[1763434292496,5.88674463,133.66,133.6,5.88674463]
[1763434292671,5.88674463,133.67,133.62,5.88674463]
[1763434292871,18.12096,133.65,133.62,5.88674463]
[1763434293104,5.88674463,133.68,133.64,9.78882769]
[1763434293399,18.12096,133.65,133.64,9.78882769]
[1763434294096,18.12096,133.65,133.63,9.78882769]
[1763434294273,5.88674463,133.67,133.64,0.72]
[1763434294594,18.12096,133.66,133.64,0.72]
[1763434294907,5.88674463,133.65,133.62,10.50882769]
[1763434295974,18.12096,133.63,133.62,10.50882769]
[1763434296502,18.12096,133.63,133.62,0.72]
[1763434297278,5.88674463,133.66,133.62,10.50882769]
[1763434297585,5.88674463,133.66,133.63,0.72]
[1763434297775,5.88674463,133.67,133.63,0.72]
[1763434298115,5.88674463,133.67,133.64,9.78882769]
[1763434298410,0.66,133.71,133.64,9.78882769]
[1763434298580,5.88674463,133.67,133.64,0.72]
[1763434299197,5.88674463,133.68,133.64,0.72]
[1763434299503,5.88674463,133.72,133.68,9.78882769]
[1763434299879,5.88674463,133.71,133.68,0.72]
[1763434300093,5.88674463,133.69,133.65,10.50882769]
[1763434300293,5.88674463,133.69,133.65,9.78882769]
[1763434300596,5.88674463,133.69,133.66,0.72]
[1763434300798,5.8442795,133.76,133.66,10.50882769]
[1763434300799,18.12096,133.67,133.66,10.50882769]
[1763434301825,24.00770463,133.68,133.67,9.78882769]
[1763434302108,24.00770463,133.68,133.66,0.66]
[1763434303879,5.88674463,133.67,133.64,17.85078274]
[1763434304108,5.88674463,133.65,133.62,0.66]
[1763434304307,5.88674463,133.63,133.62,0.66]
[1763434304505,5.88674463,133.63,133.61,8.06195505]
[1763434304687,5.88674463,133.62,133.61,10.44882769]
[1763434304886,5.88674463,133.62,133.61,18.51078274]
[1763434305107,5.88674463,133.63,133.6,8.06195505]
[1763434305320,17.24817465,133.74,133.58,0.66]
[1763434305321,5.88674463,133.61,133.58,0.66]
[1763434305603,5.88674463,133.6,133.58,8.72195505]
[1763434306179,5.88674463,133.6,133.59,9.78882769]
[1763434306405,0.66,133.67,133.59,18.51078274]
[1763434306595,5.88674463,133.63,133.61,9.78882769]
[1763434306906,5.88674463,133.62,133.61,10.44882769]
[1763434307098,5.88674463,133.62,133.61,0.66]
[1763434307296,5.88674463,133.62,133.59,17.85078274]
[1763434307497,5.88674463,133.61,133.6,10.44882769]
[1763434307811,5.88674463,133.61,133.58,9.78882769]
[1763434307981,5.88674463,133.59,133.58,10.44882769]
[1763434308314,5.88674463,133.59,133.58,9.78882769]
[1763434308514,18.12096,133.62,133.58,0.66]
[1763434308705,5.88674463,133.59,133.57,0.2]
[1763434309017,24.00770463,133.58,133.57,0.2]
[1763434310291,24.66770463,133.58,133.57,0.2]
[1763434310685,6.54674463,133.58,133.57,0.2]
[1763434310912,18.12096,133.55,133.54,0.2]
[1763434311086,24.00770463,133.55,133.52,0.1]
[1763434311282,5.88674463,133.53,133.52,0.1]
[1763434311481,18.12096,133.5,133.48,0.1]
[1763434311695,5.88674463,133.49,133.48,0.1]
[1763434312194,5.88674463,133.49,133.47,0.2]
[1763434312195,6.54674463,133.49,133.47,0.2]
[1763434312381,5.88674463,133.48,133.47,0.2]
[1763434313489,6.54674463,133.48,133.47,0.2]
[1763434314310,5.88674463,133.48,133.47,0.2]
[1763434314996,0.66,133.51,133.47,0.2]
[1763434315302,24.00770463,133.48,133.47,0.2]
[1763434315806,24.00770463,133.48,133.47,0.86]
[1763434316004,6.1520354,133.54,133.47,10.64882769]
[1763434316309,6.1520354,133.54,133.49,9.78882769]
[1763434316492,12.03878003,133.54,133.49,15.67557232]
[1763434316698,5.88674463,133.54,133.51,9.78882769]
[1763434317096,18.12096,133.55,133.53,9.78882769]
[1763434317298,5.88674463,133.56,133.54,10.44882769]
[1763434317498,5.88674463,133.56,133.55,0.66]
[1763434318312,5.88674463,133.56,133.55,10.44882769]
[1763434318822,5.88674463,133.57,133.55,10.44882769]
[1763434319009,5.88674463,133.58,133.56,10.44882769]
[1763434319521,5.88674463,133.58,133.57,0.66]
[1763434319705,18.12096,133.61,133.57,0.66]
[1763434319907,5.88674463,133.58,133.57,0.66]
[1763434320216,5.88674463,133.58,133.52,6.05953003]
[1763434320217,18.12096,133.55,133.52,6.05953003]
[1763434320523,24.00770463,133.55,133.53,0.66]
[1763434320700,5.88674463,133.55,133.53,0.66]
[1763434320895,24.00770463,133.54,133.53,10.44882769]
[1763434321127,18.12096,133.54,133.53,10.44882769]
[1763434321334,5.88674463,133.58,133.53,16.51343594]
[1763434321526,5.88674463,133.57,133.55,9.78882769]
[1763434321706,5.88674463,133.56,133.53,6.06608475]
[1763434322025,5.88674463,133.54,133.51,0.66]
[1763434322225,5.88674463,133.52,133.5,0.66]
[1763434322928,24.00770463,133.53,133.5,0.66]
[1763434323326,18.12096,133.53,133.5,0.66]
[1763434323504,5.88674463,133.56,133.51,15.67557232]
[1763434323705,0.66,133.61,133.51,15.67557232]
[1763434323706,5.88674463,133.57,133.54,9.78882769]
[1763434324016,5.88674463,133.55,133.54,15.85642119]
[1763434324212,0.66,133.61,133.54,15.85642119]
[1763434324213,18.12096,133.56,133.54,9.78882769]
[1763434324423,18.12096,133.56,133.53,6.7275935]
[1763434324424,5.88674463,133.55,133.53,6.7275935]
[1763434324728,5.88674463,133.55,133.49,11.89063103]
[1763434324729,18.12096,133.53,133.49,0.66]
[1763434324917,5.88674463,133.5,133.49,0.66]
[1763434325626,24.00770463,133.51,133.49,0.66]
[1763434325832,24.00770463,133.51,133.47,0.2]
[1763434326020,5.88674463,133.56,133.47,10.64882769]
[1763434326021,24.00770463,133.48,133.47,10.64882769]
[1763434326224,5.88674463,133.51,133.47,10.64882769]
[1763434326540,5.88674463,133.51,133.49,9.78882769]
[1763434326712,0.66,133.61,133.49,9.78882769]
[1763434326918,0.66,133.61,133.51,15.67557232]
[1763434326919,5.88674463,133.56,133.51,15.67557232]
[1763434327239,0.66,133.61,133.53,15.85672161]
[1763434327414,0.66,133.61,133.53,16.51672161]
[1763434327613,5.88674463,133.56,133.53,16.51672161]
[1763434327923,5.88674463,133.55,133.53,16.51672161]
[1763434328533,5.88674463,133.55,133.54,10.44882769]
[1763434328845,5.88674463,133.56,133.55,9.78882769]
[1763434329137,5.88674463,133.56,133.54,0.66]
[1763434329352,5.88674463,133.55,133.54,10.44882769]
[1763434329529,5.88674463,133.55,133.5,8.06195505]
[1763434329837,5.88674463,133.53,133.52,9.78882769]
[1763434330136,0.66,133.57,133.52,9.78882769]
[1763434330339,5.88674463,133.53,133.52,0.66]
[1763434330838,5.88674463,133.53,133.5,10.44882769]
[1763434331014,5.88674463,133.52,133.51,10.44882769]
[1763434331642,5.88674463,133.54,133.52,9.78882769]
[1763434331862,18.12096,133.55,133.52,0.7]
[1763434332141,18.12096,133.55,133.54,9.78882769]
[1763434332446,18.12096,133.55,133.54,10.48882769]
[1763434332645,37.78702544,133.69,133.54,22.44712862]
[1763434332646,0.67,133.63,133.54,22.44712862]
[1763434332846,0.67,133.63,133.57,9.78882769]
[1763434332847,5.88674463,133.6,133.57,9.78882769]
[1763434333162,0.67,133.63,133.56,6.0715563]
[1763434333163,5.88674463,133.58,133.56,6.0715563]
[1763434333340,5.88674463,133.57,133.53,9.78882769]
[1763434333535,0.67,133.63,133.55,9.78882769]
[1763434333736,0.67,133.63,133.57,9.78882769]
[1763434333955,5.88674463,133.6,133.57,15.86423454]
[1763434334160,5.88674463,133.6,133.57,9.78882769]
[1763434334464,5.88674463,133.59,133.58,0.7]
[1763434334764,5.88674463,133.6,133.59,9.78882769]
[1763434335059,5.88674463,133.62,133.59,9.78882769]
[1763434335242,5.88674463,133.63,133.61,9.78882769]
[1763434335763,18.12096,133.6,133.59,15.85714589]
[1763434336261,18.12096,133.61,133.59,16.55714589]
[1763434336635,5.88674463,133.62,133.61,9.78882769]
[1763434336833,24.00770463,133.62,133.61,9.78882769]
[1763434337236,5.88674463,133.64,133.61,0.7]
[1763434337444,5.88674463,133.64,133.61,6.7683182]
[1763434337643,18.12096,133.62,133.61,6.7683182]
[1763434337967,18.12096,133.67,133.59,10.48882769]
[1763434338166,24.00770463,133.61,133.59,6.7683182]
[1763434338347,18.12096,133.61,133.6,10.48882769]
[1763434338549,24.00770463,133.61,133.6,9.78882769]
[1763434339140,24.00770463,133.61,133.6,10.44882769]
[1763434339339,24.00770463,133.61,133.6,9.78882769]
[1763434340949,18.12096,133.61,133.6,10.44882769]
[1763434341158,18.12096,133.61,133.6,9.78882769]
[1763434341646,5.88674463,133.61,133.58,9.78882769]
[1763434341855,5.88674463,133.59,133.57,9.78882769]
[1763434342048,5.88674463,133.58,133.57,9.78882769]
[1763434342546,0.69,133.69,133.58,9.78882769]
[1763434342749,0.69,133.68,133.59,8.06195505]
[1763434342949,2.0,133.6,133.56,8.06195505]
[1763434343255,9.78882769,133.56,133.47,0.2]
[1763434343455,5.88674463,133.48,133.47,0.2]
[1763434343660,11.78882769,133.54,133.47,0.2]
[1763434343971,5.88674463,133.48,133.47,0.2]
[1763434344134,0.6,133.53,133.47,0.2]
[1763434344340,0.6,133.52,133.47,0.2]
[1763434344837,5.88674463,133.48,133.47,0.2]
[1763434345342,6.48674463,133.48,133.47,0.2]
[1763434346172,0.6,133.48,133.47,0.2]
[1763434346336,5.88674463,133.48,133.47,0.2]
[1763434346539,24.00770463,133.48,133.47,0.86]
[1763434346843,9.13966135,133.48,133.47,0.2]
[1763434347151,27.26062135,133.48,133.47,0.2]
[1763434347347,9.13966135,133.48,133.47,0.2]
[1763434347541,27.86062135,133.48,133.47,0.2]
[1763434347847,18.12096,133.47,133.45,0.2]
[1763434348144,9.13966135,133.46,133.44,0.2]
[1763434348370,18.12096,133.42,133.39,1.93593088]
[1763434348668,9.13966135,133.4,133.39,1.93593088]
[1763434349448,9.13966135,133.4,133.39,2.59593088]
[1763434349656,2.0,133.54,133.4,9.78882769]
[1763434349868,9.13966135,133.5,133.4,27.65044409]
[1763434350053,9.13966135,133.45,133.41,0.66]
[1763434350251,9.13966135,133.44,133.41,0.66]
[1763434350958,9.13966135,133.43,133.41,0.66]
[1763434351166,0.69,133.47,133.41,0.66]
[1763434351344,9.13966135,133.43,133.41,0.66]
[1763434352075,9.13966135,133.45,133.41,0.66]
[1763434352281,9.13966135,133.45,133.42,9.78882769]
[1763434352446,0.69,133.51,133.42,9.78882769]
[1763434352644,0.69,133.51,133.44,9.78882769]
[1763434352851,9.13966135,133.47,133.44,9.78882769]
[1763434353071,9.13966135,133.46,133.45,0.66]
[1763434353255,9.13966135,133.46,133.43,0.66]
[1763434353578,9.13966135,133.45,133.43,0.66]
[1763434353764,9.13966135,133.46,133.44,9.78882769]
[1763434354151,9.13966135,133.45,133.41,8.06195505]
[1763434354353,9.13966135,133.44,133.42,0.66]
[1763434354955,9.13966135,133.46,133.42,0.66]
[1763434355669,27.26062135,133.46,133.42,0.66]
[1763434355982,27.26062135,133.48,133.43,9.78882769]
[1763434356184,27.26062135,133.48,133.43,17.85078274]
[1763434356484,9.13966135,133.46,133.44,0.66]
[1763434357147,9.13966135,133.45,133.41,0.66]
[1763434357348,9.13966135,133.44,133.41,9.78882769]
[1763434357548,9.13966135,133.43,133.41,10.44882769]
[1763434357977,9.13966135,133.43,133.41,9.78882769]
[1763434358349,9.13966135,133.43,133.41,10.44882769]
[1763434358759,9.13966135,133.43,133.41,0.66]
[1763434358985,9.13966135,133.42,133.4,9.78882769]
[1763434359478,11.78882769,133.53,133.4,9.78882769]
[1763434359684,0.69,133.52,133.41,0.66]
[1763434359870,0.69,133.52,133.45,9.78882769]
[1763434360173,9.13966135,133.47,133.42,8.06195505]
[1763434360360,9.13966135,133.46,133.43,9.78882769]
[1763434360561,2.0,133.56,133.43,9.78882769]
[1763434360562,0.69,133.51,133.43,9.78882769]
[1763434360765,11.78882769,133.56,133.43,9.78882769]
[1763434360766,9.13966135,133.46,133.43,9.78882769]
[1763434360953,9.13966135,133.45,133.42,0.66]
[1763434361157,9.13966135,133.45,133.4,10.44882769]
[1763434361158,9.13966135,133.44,133.4,10.44882769]
[1763434361378,9.13966135,133.44,133.41,0.66]
[1763434362475,9.13966135,133.45,133.41,0.66]
[1763434362673,27.26062135,133.47,133.42,18.92848904]
[1763434363188,27.26062135,133.47,133.43,0.68]
[1763434363687,18.12096,133.47,133.44,9.78882769]
[1763434363884,27.26062135,133.47,133.44,9.78882769]
[1763434364083,27.26062135,133.47,133.44,10.46882769]
[1763434364261,27.26062135,133.47,133.43,8.06195505]
[1763434364262,9.13966135,133.46,133.43,9.78882769]
[1763434364463,9.13966135,133.46,133.43,10.46882769]
[1763434364897,9.13966135,133.46,133.43,0.68]
[1763434365392,0.66,133.48,133.43,0.68]
[1763434365588,9.13966135,133.46,133.43,0.68]
[1763434366395,9.13966135,133.44,133.41,10.46882769]
[1763434366875,9.13966135,133.45,133.42,0.68]
[1763434367397,16.65347364,133.78,133.42,0.68]
[1763434367398,0.66,133.56,133.45,9.78882769]
[1763434367693,9.13966135,133.54,133.47,8.06195505]
[1763434367869,9.13966135,133.54,133.5,9.78882769]
[1763434368276,9.13966135,133.54,133.5,10.46882769]
[1763434368670,18.12096,133.53,133.5,10.46882769]
[1763434368977,18.12096,133.52,133.51,0.68]
[1763434369173,9.13966135,133.59,133.52,9.78882769]
[1763434369489,9.13966135,133.59,133.53,9.13966135]
[1763434369696,9.13966135,133.6,133.54,18.92848904]
[1763434369995,0.66,133.61,133.54,10.46882769]
[1763434369996,18.12096,133.57,133.54,10.46882769]
[1763434370362,18.12096,133.57,133.56,9.78882769]
[1763434370576,9.13966135,133.59,133.56,9.78882769]
[1763434370794,18.12096,133.57,133.56,9.78882769]
[1763434371010,9.13966135,133.58,133.55,6.06070385]
[1763434371206,9.13966135,133.56,133.53,15.84953154]
[1763434371416,9.13966135,133.56,133.54,6.06070385]
[1763434371597,18.12096,133.57,133.54,6.74070385]
[1763434371798,18.12096,133.56,133.55,16.52953154]
[1763434372123,18.12096,133.58,133.55,6.74070385]
[1763434372292,11.78882769,133.67,133.55,6.74070385]
[1763434372293,9.13966135,133.56,133.55,6.06070385]
[1763434372615,9.13966135,133.56,133.54,6.06070385]
[1763434372817,9.13966135,133.55,133.52,15.84953154]
[1763434373006,9.13966135,133.55,133.53,6.06070385]
[1763434373205,9.13966135,133.56,133.53,6.06070385]
[1763434373506,9.13966135,133.57,133.54,6.06070385]
[1763434373891,9.13966135,133.58,133.55,10.46882769]
[1763434374110,18.12096,133.57,133.56,6.06070385]
[1763434374316,18.12096,133.57,133.56,15.84953154]
[1763434374593,9.13966135,133.61,133.56,10.46882769]
[1763434374800,9.13966135,133.6,133.57,6.06274601]
[1763434375014,9.13966135,133.6,133.56,15.8515737]
[1763434375015,9.79966135,133.6,133.56,15.8515737]
[1763434375340,0.66,133.59,133.55,6.06274601]
[1763434375496,0.66,133.59,133.54,9.78882769]
[1763434375497,18.12096,133.56,133.54,6.06274601]
[1763434377108,18.12096,133.56,133.54,6.05146366]
[1763434377506,18.12096,133.56,133.54,6.73146366]
[1763434377814,102.7,133.6,133.54,6.73146366]
[1763434377815,9.13966135,133.6,133.55,16.52029135]
[1763434378013,9.13966135,133.6,133.56,6.73146366]
[1763434378014,9.79966135,133.6,133.56,6.73146366]
[1763434378395,102.7,133.66,133.56,6.73146366]
[1763434378396,9.13966135,133.59,133.56,6.73146366]
[1763434378598,9.13966135,133.6,133.56,6.73146366]
[1763434379245,9.13966135,133.6,133.57,6.05146366]
[1763434379601,27.26062135,133.6,133.57,6.05146366]
[1763434380203,27.26062135,133.6,133.57,6.73146366]
[1763434380523,18.12096,133.58,133.55,15.84029135]
[1763434380724,9.13966135,133.57,133.55,6.05146366]
[1763434380921,27.26062135,133.58,133.55,6.05146366]
[1763434381105,9.13966135,133.61,133.56,16.52029135]
[1763434381309,9.13966135,133.62,133.58,6.05146366]
[1763434381513,9.13966135,133.62,133.59,6.05146366]
[1763434381698,27.26062135,133.62,133.59,6.05146366]
[1763434382230,27.92062135,133.62,133.58,6.05146366]
[1763434382395,27.92062135,133.62,133.59,6.05146366]
[1763434382600,102.7,133.65,133.57,6.05146366]
[1763434382601,27.26062135,133.6,133.57,6.05146366]
[1763434382825,9.13966135,133.6,133.57,6.05146366]
[1763434383011,9.79966135,133.6,133.57,6.05146366]
[1763434383217,9.13966135,133.59,133.57,6.05146366]
[1763434383822,9.13966135,133.6,133.57,6.05146366]
[1763434384022,9.13966135,133.59,133.57,6.05146366]
[1763434384222,9.13966135,133.59,133.55,8.74195505]
[1763434384223,9.13966135,133.58,133.56,6.06148748]
[1763434385104,9.13966135,133.59,133.56,6.74148748]
[1763434385422,9.13966135,133.59,133.56,6.06148748]
[1763434385618,9.79966135,133.59,133.56,6.06148748]
[1763434385810,9.13966135,133.59,133.56,6.06148748]
[1763434386199,9.13966135,133.58,133.56,6.06148748]
[1763434386402,37.78702544,133.69,133.45,43.63391878]
[1763434386403,9.13966135,133.57,133.53,6.06148748]
[1763434386601,9.13966135,133.54,133.53,6.06148748]
[1763434386811,9.13966135,133.54,133.52,6.06148748]
[1763434387347,9.13966135,133.59,133.53,25.66997652]
[1763434387498,9.13966135,133.59,133.57,6.06259467]
[1763434387699,9.13966135,133.58,133.56,6.06259467]
[1763434388000,9.13966135,133.57,133.56,6.06259467]
[1763434388226,9.13966135,133.57,133.55,6.06259467]
[1763434388433,27.26062135,133.57,133.55,6.06259467]
[1763434388927,18.12096,133.57,133.56,10.46882769]
[1763434389127,27.26062135,133.59,133.56,10.46882769]
[1763434389327,0.66,133.65,133.58,15.84462182]
[1763434389511,9.13966135,133.62,133.58,15.84462182]
[1763434389831,27.26062135,133.61,133.58,15.84462182]
[1763434390198,9.13966135,133.6,133.58,15.84462182]
[1763434390403,18.12096,133.61,133.58,6.05579413]
[1763434390404,9.13966135,133.59,133.58,6.05579413]
[1763434390833,9.13966135,133.6,133.58,6.73579413]
[1763434391017,0.66,133.63,133.58,6.05579413]
[1763434391220,9.13966135,133.6,133.57,15.84462182]
[1763434391532,0.66,133.63,133.57,15.84462182]
[1763434391713,102.7,133.69,133.58,6.75579413]
[1763434391900,9.13966135,133.62,133.59,6.05579413]
[1763434392105,0.66,133.65,133.6,9.78882769]
[1763434392305,9.13966135,133.62,133.6,9.78882769]
[1763434392609,9.13966135,133.66,133.62,9.78882769]
[1763434392916,9.13966135,133.65,133.62,9.78882769]
[1763434393424,9.13966135,133.64,133.62,0.7]
[1763434393625,9.13966135,133.63,133.61,6.05579413]
[1763434393800,9.13966135,133.63,133.6,9.78882769]
[1763434393801,9.13966135,133.62,133.6,15.84462182]
[1763434394004,9.13966135,133.62,133.59,6.75579413]
[1763434394220,9.13966135,133.62,133.6,9.78882769]
[1763434394427,9.13966135,133.61,133.59,6.05579413]
[1763434394635,27.26062135,133.62,133.59,6.75579413]
[1763434394837,9.13966135,133.61,133.59,6.75579413]
[1763434395050,18.12096,133.62,133.6,10.48882769]
[1763434395209,0.66,133.66,133.6,10.48882769]
[1763434395210,9.13966135,133.65,133.62,9.78882769]
[1763434395412,9.13966135,133.64,133.62,9.78882769]
[1763434395610,0.66,133.68,133.62,15.84462182]
[1763434395611,9.13966135,133.65,133.62,15.84462182]
[1763434395810,18.12096,133.67,133.62,15.84462182]
[1763434396027,9.13966135,133.65,133.62,16.54462182]
[1763434396338,9.13966135,133.65,133.62,10.48882769]
[1763434396717,9.13966135,133.65,133.62,9.78882769]
[1763434396964,9.13966135,133.67,133.63,16.54462182]
[1763434397529,18.12096,133.68,133.64,16.54462182]
[1763434397744,9.13966135,133.69,133.65,10.48882769]
[1763434397939,9.13966135,133.69,133.65,16.54462182]
[1763434397940,18.12096,133.68,133.65,16.54462182]
[1763434398138,9.13966135,133.7,133.66,6.75579413]
[1763434398440,0.2,133.72,133.69,9.78882769]
[1763434398646,18.32096,133.72,133.69,15.84462182]
[1763434398804,18.32096,133.72,133.7,6.74579413]
[1763434398805,18.12096,133.71,133.7,6.74579413]
[1763434399010,18.12096,133.71,133.7,15.84462182]
[1763434399333,18.12096,133.71,133.7,10.47882769]
[1763434400012,0.2,133.72,133.71,9.78882769]
[1763434400213,18.32096,133.72,133.71,9.78882769]
[1763434400416,0.2,133.72,133.69,6.74579413]
[1763434400643,18.12096,133.71,133.7,6.74579413]
[1763434401254,18.12096,133.71,133.7,0.69]
[1763434401829,9.33966135,133.72,133.7,0.69]
[1763434402235,18.12096,133.7,133.69,6.05579413]
[1763434402409,9.13966135,133.7,133.66,6.05579413]
[1763434402617,9.13966135,133.67,133.63,6.05579413]
[1763434402934,27.26062135,133.64,133.61,6.0241405]
[1763434403242,18.12096,133.67,133.59,6.0241405]
[1763434403537,18.12096,133.59,133.58,6.7141405]
[1763434403741,18.12096,133.59,133.58,10.47882769]
[1763434403917,9.13966135,133.6,133.59,9.78882769]
[1763434404320,9.13966135,133.6,133.58,6.0241405]
[1763434404532,9.13966135,133.6,133.58,0.69]
[1763434405021,9.13966135,133.63,133.59,6.0241405]
[1763434405332,0.72,133.66,133.61,9.78882769]
[1763434405530,9.13966135,133.63,133.61,9.78882769]
[1763434405732,9.13966135,133.63,133.61,10.47882769]
[1763434405935,9.13966135,133.63,133.6,6.0241405]
[1763434406236,9.13966135,133.61,133.58,6.0241405]
[1763434406436,9.13966135,133.59,133.57,6.0241405]
[1763434406740,9.13966135,133.59,133.57,6.7141405]
[1763434406926,9.13966135,133.59,133.57,6.0241405]
[1763434407329,9.13966135,133.6,133.57,6.0241405]
[1763434408039,9.13966135,133.59,133.57,6.0241405]
[1763434408218,9.13966135,133.59,133.58,15.81296819]
[1763434408424,9.13966135,133.59,133.58,6.0241405]
[1763434408624,9.13966135,133.59,133.57,15.81296819]
[1763434408828,5.89434502,133.59,133.57,15.81296819]
[1763434409031,5.89434502,133.6,133.58,6.0241405]
[1763434409236,5.89434502,133.64,133.59,9.78882769]
[1763434409543,7.89434502,133.74,133.62,15.84537658]
[1763434409738,7.89434502,133.74,133.65,6.05654889]
[1763434409739,5.89434502,133.67,133.65,6.05654889]
[1763434409943,5.89434502,133.66,133.65,6.05654889]
[1763434410256,6.61434502,133.66,133.64,6.05654889]
[1763434410460,6.61434502,133.65,133.64,6.05654889]
[1763434410761,18.12096,133.62,133.6,6.05654889]
[1763434411045,24.01530502,133.62,133.6,6.05654889]
[1763434411252,5.89434502,133.61,133.6,6.05654889]
[1763434411446,0.72,133.61,133.59,6.05654889]
[1763434411624,18.12096,133.59,133.58,6.05654889]
[1763434411992,24.01530502,133.59,133.58,6.05654889]
[1763434412253,24.73530502,133.59,133.58,6.05654889]
[1763434412628,0.72,133.59,133.58,6.05654889]
[1763434412825,6.61434502,133.59,133.58,6.05654889]
[1763434413043,6.61434502,133.59,133.57,6.05654889]
[1763434413242,6.61434502,133.58,133.54,6.05654889]
[1763434413553,5.89434502,133.55,133.54,6.09199168]
[1763434413847,5.89434502,133.55,133.53,6.09199168]
[1763434414052,43.48337504,133.65,133.53,6.09199168]
[1763434414053,6.61434502,133.54,133.53,6.09199168]
[1763434414234,6.61434502,133.54,133.51,6.09199168]
[1763434414428,5.89434502,133.52,133.5,6.09199168]
[1763434414627,5.89434502,133.51,133.5,6.09199168]
[1763434415750,24.01530502,133.51,133.5,6.09199168]
[1763434416145,24.73530502,133.51,133.5,6.09199168]
[1763434417335,18.12096,133.51,133.5,9.78882769]
[1763434417655,24.73530502,133.51,133.49,8.06195505]
[1763434417826,5.89434502,133.5,133.49,6.09090236]
[1763434418031,24.01530502,133.51,133.49,6.09090236]
[1763434418253,24.73530502,133.51,133.49,6.09090236]
[1763434419056,24.01530502,133.51,133.49,6.09090236]
[1763434419252,0.72,133.59,133.5,10.47882769]
[1763434419554,0.72,133.59,133.52,6.09090236]
[1763434419555,5.89434502,133.54,133.52,6.09090236]
[1763434420131,5.89434502,133.53,133.52,6.09090236]
[1763434420360,5.89434502,133.53,133.51,15.87973005]